fUSD/lending_fUSD_20241031
["ID","MTS","AMOUNT","RATE_DAILY","PERIOD"]
[341097679,1730363476460,-570.59,0.00051999,120]
[341097680,1730363476469,-570.59,0.00051999,120]
[341097681,1730363476479,-570.59,0.00051999,120]
[341097682,1730363476489,-570.59,0.00051999,120]
[341097683,1730363476498,-570.59,0.00051999,120]
[341097684,1730363476508,-570.59,0.00051999,120]
[341097685,1730363476517,-570.59,0.00051999,120]
[341097686,1730363476526,-570.59,0.00051999,120]
[341097687,1730363476535,-570.59,0.00051999,120]
[341097688,1730363476545,-570.59,0.00051999,120]
[341097689,1730363476554,-570.63879549,0.00051999,120]
[341097690,1730363476564,-922.94,0.00051999,120]
[341097691,1730363476573,-922.94,0.00051999,120]
[341097692,1730363476582,-922.94,0.00051999,120]
[341097693,1730363476591,-922.94,0.00051999,120]
[341097694,1730363476601,-922.94,0.00051999,120]
[341097695,1730363476611,-922.94,0.00051999,120]
[341097696,1730363476620,-922.94,0.00051999,120]
[341097697,1730363476629,-922.94,0.00051999,120]
[341097698,1730363476639,-922.94,0.00051999,120]
[341097699,1730363476648,-922.94,0.00051999,120]
[341097700,1730363476658,-922.94,0.00051999,120]
[341097701,1730363476667,-923.02209967,0.00051999,120]
[341097702,1730363476677,-805.39,0.00051999,120]
[341097703,1730363476686,-805.39,0.00051999,120]
[341097704,1730363476696,-805.39,0.00051999,120]
[341097705,1730363476705,-805.39,0.00051999,120]
[341097706,1730363476715,-805.39,0.00051999,120]
[341097707,1730363476724,-805.39,0.00051999,120]
[341097708,1730363476734,-581.27,0.00051999,120]
[341097709,1730363476743,-805.39,0.00051999,120]
[341097710,1730363476753,-581.27,0.00051999,120]
[341097711,1730363476762,-805.39,0.00051999,120]
[341097712,1730363476772,-581.27,0.00051999,120]
[341097713,1730363476782,-805.39,0.00051999,120]
[341097714,1730363476793,-581.27,0.00051999,120]
[341097715,1730363476803,-805.39,0.00051999,120]
[341097716,1730363476812,-581.27,0.00051999,120]
[341097717,1730363476822,-805.39,0.00051999,120]
[341097718,1730363476831,-581.27,0.00051999,120]
[341097719,1730363476841,-805.50134144,0.00051999,120]
[341097720,1730363476851,-581.27,0.00051999,120]
[341097721,1730363476862,-581.27,0.00051999,120]
[341097722,1730363476871,-581.27,0.00051999,120]
[341097723,1730363476880,-581.27,0.00051999,120]
[341097724,1730363476891,-581.41433327,0.00051999,120]
[341097725,1730363476901,-500.0,0.00051999,120]
[341097726,1730363476910,-157.15774484,0.00051999,120]
[341097727,1730363476920,-1938.45,0.00051999,120]
[341097728,1730363476929,-1938.45,0.00051999,120]
[341097729,1730363476938,-1938.45,0.00051999,120]
[341097730,1730363476948,-1938.45,0.00051999,120]
[341097731,1730363476957,-1938.45,0.00051999,120]
[341097732,1730363476967,-1938.45,0.00051999,120]
[341097733,1730363476976,-1938.45,0.00051999,120]
[341097734,1730363476986,-1938.45,0.00051999,120]
[341097735,1730363476999,-1938.45,0.00051999,120]
[341097736,1730363477009,-1938.45,0.00051999,120]
[341097737,1730363477018,-1938.5511,0.00051999,120]
[341097738,1730363477028,-500.0,0.00051999,120]
[341097739,1730363477038,-500.0,0.00051999,120]
[341097740,1730363477047,-500.0,0.00051999,120]
[341097741,1730363477057,-378.75659524,0.00051999,120]
[341097742,1730363477066,-500.0,0.00051999,120]
[341097743,1730363477075,-317.87054111,0.00051999,120]
[341097744,1730363477084,-500.0,0.00051999,120]
[341097745,1730363477093,-500.0,0.00051999,120]
[341097746,1730363477103,-500.0,0.00051999,120]
[341097747,1730363477114,-500.0,0.00051999,120]
[341097748,1730363477123,-528.15667704,0.00051999,120]
[341097749,1730363477134,-500.0,0.00051999,120]
[341097750,1730363477146,-500.0,0.00051999,120]
[341097751,1730363477160,-500.0,0.00051999,120]
[341097752,1730363477170,-500.0,0.00051999,120]
[341097753,1730363477179,-500.0,0.00051999,120]
[341097754,1730363477190,-500.0,0.00051999,120]
[341097755,1730363477200,-500.0,0.00051999,120]
[341097756,1730363477209,-500.0,0.00051999,120]
[341097757,1730363477219,-614.14434975,0.00051999,120]
[341097758,1730363477230,-4556.39,0.00051999,120]
[341097759,1730363477241,-4556.39,0.00051999,120]
[341097760,1730363477250,-4556.39,0.00051999,120]
[341097761,1730363477259,-4556.39,0.00051999,120]
[341097762,1730363477269,-4556.39,0.00051999,120]
[341097763,1730363477278,-4556.39,0.00051999,120]
[341097764,1730363477287,-4556.52525301,0.00051999,120]
[341097765,1730363477296,-151.0,0.00051999,120]
[341097766,1730363477306,-890.13,0.00051999,120]
[341097767,1730363477315,-890.13,0.00051999,120]
[341097768,1730363477324,-890.13,0.00051999,120]
[341097769,1730363477333,-890.13,0.00051999,120]
[341097770,1730363477343,-890.13,0.00051999,120]
[341097771,1730363477352,-151.0,0.00051999,120]
[341097772,1730363477361,-890.13,0.00051999,120]
[341097773,1730363477370,-890.13,0.00051999,120]
[341097774,1730363477380,-151.0,0.00051999,120]
[341097775,1730363477389,-890.13,0.00051999,120]
[341097776,1730363477399,-890.13,0.00051999,120]
[341097777,1730363477408,-890.13,0.00051999,120]
[341097778,1730363477418,-890.28017926,0.00051999,120]
[341097779,1730363477428,-151.0,0.00051999,120]
[341097780,1730363477437,-1314.67,0.00051999,120]
[341097781,1730363477447,-1314.67,0.00051999,120]
[341097782,1730363477457,-1314.67,0.00051999,120]
[341097783,1730363477466,-1314.67,0.00051999,120]
[341097784,1730363477476,-1314.67,0.00051999,120]
[341097785,1730363477486,-1314.67,0.00051999,120]
[341097786,1730363477495,-5896.63,0.00051999,120]
[341097787,1730363477505,-1314.67,0.00051999,120]
[341097788,1730363477514,-5896.63,0.00051999,120]
[341097789,1730363477523,-1314.67,0.00051999,120]
[341097790,1730363477533,-5896.63,0.00051999,120]
[341097791,1730363477544,-1314.67,0.00051999,120]
[341097792,1730363477555,-5896.63,0.00051999,120]
[341097793,1730363477564,-1314.67,0.00051999,120]
[341097794,1730363477573,-5896.63,0.00051999,120]
[341097795,1730363477582,-1314.82956877,0.00051999,120]
[341097796,1730363477592,-5896.63,0.00051999,120]
[341097797,1730363477601,-5896.73,0.00051999,120]
[341097798,1730363477611,-1021.05,0.00051999,120]
[341097799,1730363477620,-1021.05,0.00051999,120]
[341097800,1730363477629,-1021.05,0.00051999,120]
[341097801,1730363477639,-1021.05,0.00051999,120]
[341097802,1730363477648,-1021.05,0.00051999,120]
[341097803,1730363477657,-1021.05,0.00051999,120]
[341097804,1730363477667,-1021.05,0.00051999,120]
[341097805,1730363477677,-1021.05,0.00051999,120]
[341097806,1730363477688,-1021.05,0.00051999,120]
[341097807,1730363477698,-1021.05,0.00051999,120]
[341097808,1730363477707,-1021.21141321,0.00051999,120]
[341097809,1730363477717,-297.28439251,0.00052,2]
[341097810,1730363477726,-297.28439251,0.00052,2]
[341097811,1730363477737,-151.0,0.00052,2]
[341097812,1730363477746,-910725.97348669,0.00052,64]
[341097813,1730363477755,-4766.33224114,0.00052,2]
[341097814,1730363477765,-3206.92968805,0.00052,67]
[341097815,1730363477776,-8831071.00897208,0.00052,120]
[341097816,1730363477786,-5000.0,0.00052,120]
[341097817,1730363477796,-721257.48726875,0.00052,30]
[341097818,1730363477805,-143998.05052,0.00052,30]
[341097819,1730363477814,-230.74800426,0.00052,120]
[341097820,1730363477824,-264.6786439,0.00052,120]
[341097821,1730363477833,-2339.52343276,0.00052,120]
[341097822,1730363477842,-292.24371966,0.00052,108]
[341097823,1730363477851,-1538.53875179,0.00052,120]
[341097824,1730363477861,-1005.0,0.00052,30]
[341097825,1730363477870,-500.0,0.00052,120]
[341097826,1730363477880,-12826.0243607,0.00052,30]
[341097827,1730363477889,-2110.0,0.00052,30]
[341097828,1730363477898,-151.0,0.00052,120]
[341097829,1730363477907,-151.0,0.00052,120]
[341097830,1730363477916,-151.0,0.00052,120]
[341097831,1730363477925,-268.539059,0.00052,120]
[341097832,1730363477934,-151.0,0.00052,120]
[341097833,1730363477943,-229.997107,0.00052,7]
[341097834,1730363477953,-229.997107,0.00052,7]
[341097835,1730363477962,-151.0,0.00052,120]
[341097836,1730363477972,-151.0,0.00052,120]
[341097837,1730363477981,-151.0,0.00052,7]
[341097838,1730363477994,-151.0,0.00052,120]
[341097839,1730363478003,-151.0,0.00052,7]
[341097840,1730363478013,-151.0,0.00052,120]
[341097841,1730363478022,-155.943553,0.00052,120]
[341097842,1730363478031,-162.480551,0.00052,120]
[341097843,1730363478040,-699.883537,0.00052,120]
[341097844,1730363478049,-699.883537,0.00052,120]
[341097845,1730363478059,-699.883537,0.00052,120]
[341097846,1730363478068,-699.883537,0.00052,120]
[341097847,1730363478077,-530.220935,0.00052,120]
[341097848,1730363478086,-530.220935,0.00052,120]
[341097849,1730363478096,-530.220935,0.00052,120]
[341097850,1730363478106,-530.220935,0.00052,120]
[341097851,1730363478115,-151.0,0.00052,120]
[341097852,1730363478124,-151.0,0.00052,120]
[341097853,1730363478133,-151.0,0.00052,120]
[341097854,1730363478142,-151.0,0.00052,120]
[341097855,1730363478157,-181.579677,0.00052,120]
[341097856,1730363478166,-804.361418,0.00052,120]
[341097857,1730363478176,-804.361418,0.00052,120]
[341097858,1730363478185,-804.361418,0.00052,120]
[341097859,1730363478198,-804.361418,0.00052,120]
[341097860,1730363478207,-151.0,0.00052,120]
[341097861,1730363478216,-151.0,0.00052,120]
[341097862,1730363478227,-151.0,0.00052,120]
[341097863,1730363478239,-151.0,0.00052,120]
[341097864,1730363478249,-3000.0,0.00052,14]
[341097865,1730363478259,-3000.0,0.00052,14]
[341097866,1730363478268,-3000.0,0.00052,14]
[341097867,1730363478277,-3000.0,0.00052,14]
[341097868,1730363478287,-3000.0,0.00052,14]
[341097869,1730363478296,-3000.0,0.00052,14]
[341097870,1730363478306,-3000.0,0.00052,14]
[341097871,1730363478315,-3000.0,0.00052,14]
[341097872,1730363478324,-3000.0,0.00052,14]
[341097873,1730363478470,-3000.0,0.00052,14]
[341097874,1730363478481,-3000.0,0.00052,14]
[341097875,1730363478497,-3000.0,0.00052,14]
[341097876,1730363478507,-3000.0,0.00052,14]
[341097877,1730363478516,-3000.0,0.00052,14]
[341097878,1730363478526,-3000.0,0.00052,14]
[341097879,1730363478536,-2144.375693,0.00052,14]
[341097880,1730363478545,-151.0,0.00052,120]
[341097881,1730363478555,-163.275223,0.00052,120]
[341097882,1730363478565,-157.84043,0.00052,120]
[341097883,1730363478575,-151.0,0.00052,120]
[341097884,1730363478584,-1000.0,0.00052053,120]
[341097885,1730363478594,-2761.09,0.00052053,120]
[341097886,1730363478603,-1000.0,0.00052054,120]
[341097887,1730363478613,-1000.0,0.00052054,120]
[341097888,1730363478622,-500.0,0.00052054,120]
[341097889,1730363478632,-500.0,0.00052054,120]
[341097890,1730363478641,-500.0,0.00052054,120]
[341097891,1730363478650,-500.0,0.00052054,120]
[341097892,1730363478659,-500.0,0.00052054,120]
[341097893,1730363478669,-500.0,0.00052054,120]
[341097894,1730363478679,-500.0,0.00052054,120]
[341097895,1730363478688,-500.0,0.00052054,120]
[341097896,1730363478697,-500.0,0.00052054,120]
[341097897,1730363478707,-500.0,0.00052054,120]
[341097898,1730363478716,-500.0,0.00052054,120]
[341097899,1730363478725,-500.0,0.00052054,120]
[341097900,1730363478738,-208.73962553,0.00052054,120]
[341097901,1730363478749,-1000.0,0.00052054,120]
[341097902,1730363478758,-1399.09,0.00052054,60]
[341097903,1730363478767,-1399.09,0.00052054,60]
[341097904,1730363478777,-1399.09,0.00052054,60]
[341097905,1730363478786,-1399.09,0.00052054,60]
[341097906,1730363478795,-1399.09,0.00052054,60]
[341097907,1730363478805,-1399.09,0.00052054,60]
[341097908,1730363478814,-1399.09,0.00052054,60]
[341097909,1730363478823,-1399.09,0.00052054,60]
[341097910,1730363478832,-1399.09,0.00052054,60]
[341097911,1730363478842,-1399.09,0.00052054,60]
[341097912,1730363478851,-1399.09,0.00052054,60]
[341097913,1730363478860,-1399.09,0.00052054,60]
[341097914,1730363478869,-1399.09,0.00052054,60]
[341097915,1730363478878,-1399.09,0.00052054,60]
[341097916,1730363478887,-1399.09,0.00052054,60]
[341097917,1730363478896,-1399.09,0.00052054,60]
[341097918,1730363478906,-1399.09,0.00052054,60]
[341097919,1730363478915,-1399.09,0.00052054,60]
[341097920,1730363478924,-1399.09,0.00052054,60]
[341097921,1730363478934,-1399.09,0.00052054,60]
[341097922,1730363478944,-1399.09,0.00052054,60]
[341097923,1730363478954,-1399.09,0.00052054,60]
[341097924,1730363478964,-1399.09,0.00052054,60]
[341097925,1730363478973,-1399.19159661,0.00052054,60]
[341097926,1730363478983,-2087.12901652,0.00052054,120]
[341097927,1730363478997,-151.0,0.00052055,120]
[341097928,1730363479007,-10000.0,0.000523,30]
[341097929,1730363479017,-200.0,0.00052318,15]
[341097930,1730363479026,-234.99571889,0.00052327,120]
[341097931,1730363479036,-1000.0,0.00052328,120]
[341097932,1730363479046,-615.71399606,0.0005234,120]
[341097933,1730363479056,-8624.8844977,0.00052404,2]
[341097934,1730363479066,-3763.1926507,0.00052404,2]
[341097935,1730363479076,-5007.00863,0.00052416,30]
[341097936,1730363479085,-1200000.0,0.0005244,30]
[341097937,1730363479095,-151.0,0.0005244,7]
[341097938,1730363479104,-151.0,0.0005244,7]
[341097939,1730363479114,-151.0,0.0005244,120]
[341097940,1730363479123,-151.0,0.0005244,120]
[341097941,1730363479132,-155.878578,0.0005244,120]
[341097942,1730363479142,-179.248984,0.0005244,120]
[341097943,1730363479154,-153.317308,0.0005244,120]
[341097944,1730363479164,-154.438807,0.0005244,120]
[341097945,1730363479173,-152.614941,0.0005244,120]
[341097946,1730363479182,-151.0,0.0005244,120]
[341097947,1730363479192,-151.0,0.0005244,120]
[341097948,1730363479202,-151.0,0.0005244,120]
[341097949,1730363479210,-151.0,0.0005244,120]
[341097950,1730363479220,-151.0,0.0005244,120]
[341097951,1730363479230,-151.0,0.0005244,120]
[341097952,1730363479244,-151.0,0.0005244,120]
[341097953,1730363479253,-151.0,0.0005244,120]
[341097954,1730363479262,-151.0,0.0005244,120]
[341097955,1730363479272,-174.765496,0.0005244,120]
[341097956,1730363479281,-151.0,0.0005244,120]
[341097957,1730363479291,-151.0,0.0005244,60]
[341097958,1730363479301,-151.0,0.0005244,120]
[341097959,1730363479311,-151.0,0.0005244,120]
[341097960,1730363479321,-157.107717,0.0005244,120]
[341097961,1730363479331,-229.584183,0.0005244,120]
[341097962,1730363479341,-151.0,0.0005244,120]
[341097963,1730363479350,-285.498501,0.0005244,120]
[341097964,1730363479360,-236.786287,0.0005244,120]
[341097965,1730363479369,-229.997107,0.0005244,7]
[341097966,1730363479378,-229.997107,0.0005244,7]
[341097967,1730363479388,-151.0,0.0005244,120]
[341097968,1730363479397,-151.0,0.0005244,120]
[341097969,1730363479407,-151.0,0.0005244,7]
[341097970,1730363479416,-151.0,0.0005244,120]
[341097971,1730363479426,-151.0,0.0005244,7]
[341097972,1730363479435,-699.883537,0.0005244,120]
[341097973,1730363479445,-699.883537,0.0005244,120]
[341097974,1730363479454,-530.220935,0.0005244,120]
[341097975,1730363479464,-530.220935,0.0005244,120]
[341097976,1730363479473,-245.807197,0.0005244,120]
[341097977,1730363479486,-151.0,0.0005244,120]
[341097978,1730363479496,-804.361418,0.0005244,120]
[341097979,1730363479505,-804.361418,0.0005244,120]
[341097980,1730363479514,-151.0,0.0005244,120]
[341097981,1730363479524,-151.0,0.0005244,120]
[341097982,1730363479533,-151.0,0.0005244,120]
[341097983,1730363479543,-151.0,0.0005244,120]
[341097984,1730363479552,-152.0,0.00052458,8]
[341097985,1730363479561,-152.0,0.00052458,3]
[341097986,1730363479571,-2200.0,0.000525,120]
[341097987,1730363479580,-2110.0,0.000525,30]
[341097988,1730363479589,-615.713996,0.00052513,120]
[341097989,1730363479599,-500.0,0.00052596,120]
[341097990,1730363479608,-1000.0,0.00052602,120]
[341097991,1730363479618,-1000.0,0.00052602,120]
[341097992,1730363479627,-248.46,0.00052626,2]
[341097993,1730363479636,-615.713996,0.00052687,120]
[341097994,1730363479646,-1124.469118,0.00052725,120]
[341097995,1730363479656,-2761.09,0.00052738,120]
[341097996,1730363479665,-166.89,0.00052775,2]
[341097997,1730363479676,-200.0,0.00052841,120]
[341097998,1730363479686,-200.0,0.00052841,15]
[341097999,1730363479696,-615.713996,0.0005286,120]
[341098000,1730363479705,-200.33,0.00052867,2]
[341098001,1730363479715,-1000.0,0.00052876,120]
[341098002,1730363479725,-8055.89923087,0.0005289,30]
[341098003,1730363479735,-254735.3315,0.000529,30]
[341098004,1730363479745,-150.0,0.000529,120]
[341098005,1730363479754,-10118.912573,0.00053,120]
[341098006,1730363479764,-5000.0,0.00053,120]
[341098007,1730363479773,-3616.37427446,0.00053,120]
[341098008,1730363479784,-2025.77,0.00053,120]
[341098009,1730363479794,-169.84,0.00053,120]
[341098010,1730363479806,-450.0,0.00053,120]
[341098011,1730363479818,-571.76342082,0.00053,2]
[341098012,1730363479828,-500.0,0.00053,120]
[341098013,1730363479838,-2110.0,0.00053,30]
[341098014,1730363479847,-958.74,0.00053,30]
[341098015,1730363479857,-150.0,0.0005302,120]
[341098016,1730363479866,-615.713996,0.00053033,120]
[341098017,1730363479875,-2334.42,0.000531,60]
[341098018,1730363479885,-763.65,0.00053105,120]
[341098019,1730363479894,-1000.0,0.0005315,120]
[341098020,1730363479904,-1000.0,0.0005315,120]
[341098021,1730363479913,-130301.0,0.00053186,10]
[341098022,1730363479922,-158.0,0.00053186,10]
[341098023,1730363479931,-615.713996,0.00053207,120]
[341098024,1730363479940,-500.0,0.0005328,120]
[341098025,1730363479950,-234.87735,0.000533,120]
[341098026,1730363479959,-443.20653007,0.0005331,2]
[341098027,1730363479968,-615.713996,0.0005338,120]
[341098028,1730363479978,-497.71,0.0005342,2]
[341098029,1730363479989,-2761.09,0.00053423,120]
[341098030,1730363479998,-1000.0,0.00053424,120]
[341098031,1730363480008,-1200000.0,0.0005344,30]
[341098032,1730363480017,-151.0,0.0005344,7]
[341098033,1730363480026,-151.0,0.0005344,7]
[341098034,1730363480035,-151.0,0.0005344,120]
[341098035,1730363480045,-214.062179,0.0005344,120]
[341098036,1730363480054,-151.0,0.0005344,120]
[341098037,1730363480064,-151.0,0.0005344,120]
[341098038,1730363480074,-151.0,0.0005344,120]
[341098039,1730363480083,-151.0,0.0005344,120]
[341098040,1730363480093,-151.0,0.0005344,120]
[341098041,1730363480102,-151.0,0.0005344,120]
[341098042,1730363480111,-301.999999,0.0005344,120]
[341098043,1730363480120,-151.0,0.0005344,120]
[341098044,1730363480129,-161.232633,0.0005344,120]
[341098045,1730363480139,-151.0,0.0005344,120]
[341098046,1730363480149,-151.0,0.0005344,60]
[341098047,1730363480161,-151.0,0.0005344,120]
[341098048,1730363480171,-208.447563,0.0005344,120]
[341098049,1730363480180,-151.0,0.0005344,120]
[341098050,1730363480191,-229.997107,0.0005344,7]
[341098051,1730363480201,-229.997107,0.0005344,7]
[341098052,1730363480211,-151.0,0.0005344,120]
[341098053,1730363480222,-151.0,0.0005344,120]
[341098054,1730363480232,-151.0,0.0005344,7]
[341098055,1730363480251,-151.0,0.0005344,120]
[341098056,1730363480260,-151.0,0.0005344,7]
[341098057,1730363480270,-699.883537,0.0005344,120]
[341098058,1730363480280,-699.883537,0.0005344,120]
[341098059,1730363480289,-530.220935,0.0005344,120]
[341098060,1730363480299,-530.220935,0.0005344,120]
[341098061,1730363480308,-151.0,0.0005344,120]
[341098062,1730363480317,-804.361418,0.0005344,120]
[341098063,1730363480327,-804.361418,0.0005344,120]
[341098064,1730363480337,-151.0,0.0005344,120]
[341098065,1730363480346,-151.0,0.0005344,120]
[341098066,1730363480356,-151.0,0.0005344,120]
[341098067,1730363480365,-151.0,0.0005344,120]
[341098068,1730363480374,-156.00831996,0.00053452,10]
[341098069,1730363480384,-2815.7792747,0.00053456,2]
[341098070,1730363480394,-147688.72858639,0.00053487,10]
[341098071,1730363480403,-610.60711297,0.00053487,10]
[341098072,1730363480413,-32587.06552345,0.00053493,10]
[341098073,1730363480422,-2903.77289181,0.00053495,10]
[341098074,1730363480433,-2110.0,0.000535,30]
[341098075,1730363480442,-280.20110406,0.00053507,10]
[341098076,1730363480451,-2903.77289181,0.00053512,10]
[341098077,1730363480462,-500.0,0.00053513,120]
[341098078,1730363480471,-554.56692818,0.00053521,10]
[341098079,1730363480481,-629.0,0.00053532,120]
[341098080,1730363480493,-2903.77289181,0.00053532,10]
[341098081,1730363480502,-280.20110406,0.0005354,10]
[341098082,1730363480511,-1412.48744737,0.0005354,10]
[341098083,1730363480521,-2903.77289181,0.00053541,10]
[341098084,1730363480530,-32587.06552345,0.00053545,10]
[341098085,1730363480540,-615.713996,0.00053553,120]
[341098086,1730363480549,-200.0,0.00053576,10]
[341098087,1730363480558,-280.20110406,0.00053578,10]
[341098088,1730363480567,-610.60711297,0.00053581,10]
[341098089,1730363480578,-32587.06552345,0.00053588,10]
[341098090,1730363480588,-1304.0766611,0.00053591,2]
[341098091,1730363480598,-554.56692818,0.00053596,10]
[341098092,1730363480607,-3762.75855787,0.00053598,10]
[341098093,1730363480617,-554.56692818,0.00053611,10]
[341098094,1730363480626,-554.56692818,0.00053615,10]
[341098095,1730363480635,-200.0,0.00053623,10]
[341098096,1730363480645,-17975.50834725,0.00053624,10]
[341098097,1730363480657,-1412.48744737,0.00053625,10]
[341098098,1730363480667,-610.60711297,0.00053626,10]
[341098099,1730363480677,-147688.72858639,0.00053627,10]
[341098100,1730363480687,-147688.72858639,0.00053642,10]
[341098101,1730363480699,-554.56692818,0.00053642,10]
[341098102,1730363480709,-610.60711297,0.00053643,10]
[341098103,1730363480719,-2903.77289181,0.00053643,10]
[341098104,1730363480728,-3762.75855787,0.00053653,10]
[341098105,1730363480740,-196.75833899,0.00053653,30]
[341098106,1730363480749,-610.60711297,0.00053657,10]
[341098107,1730363480758,-200.0,0.00053664,10]
[341098108,1730363480768,-17975.50834725,0.00053667,10]
[341098109,1730363480778,-32587.06552345,0.00053669,10]
[341098110,1730363480787,-1412.48744737,0.00053673,10]
[341098111,1730363480799,-200.0,0.00053674,10]
[341098112,1730363480810,-17975.50834725,0.00053675,10]
[341098113,1730363480820,-554.56692818,0.00053682,10]
[341098114,1730363480831,-564.6054305,0.00053689,120]
[341098115,1730363480843,-1412.48744737,0.00053689,10]
[341098116,1730363480853,-258.308553,0.0005369,120]
[341098117,1730363480863,-1236621.26,0.0005369,120]
[341098118,1730363480873,-151.0,0.0005369,7]
[341098119,1730363480885,-151.0,0.0005369,7]
[341098120,1730363480898,-235.067532,0.0005369,120]
[341098121,1730363480908,-151.0,0.0005369,120]
[341098122,1730363480918,-151.0,0.0005369,120]
[341098123,1730363480928,-151.0,0.0005369,120]
[341098124,1730363480936,-151.0,0.0005369,120]
[341098125,1730363480946,-151.0,0.0005369,120]
[341098126,1730363480955,-151.0,0.0005369,60]
[341098127,1730363480964,-151.0,0.0005369,120]
[341098128,1730363480974,-229.997107,0.0005369,7]
[341098129,1730363480985,-229.997107,0.0005369,7]
[341098130,1730363480994,-151.0,0.0005369,120]
[341098131,1730363481004,-151.0,0.0005369,120]
[341098132,1730363481013,-151.0,0.0005369,7]
[341098133,1730363481022,-151.0,0.0005369,120]
[341098134,1730363481032,-151.0,0.0005369,7]
[341098135,1730363481041,-699.883537,0.0005369,120]
[341098136,1730363481051,-699.883537,0.0005369,120]
[341098137,1730363481060,-530.220935,0.0005369,120]
[341098138,1730363481070,-530.220935,0.0005369,120]
[341098139,1730363481080,-151.0,0.0005369,120]
[341098140,1730363481090,-804.361418,0.0005369,120]
[341098141,1730363481100,-804.361418,0.0005369,120]
[341098142,1730363481110,-151.0,0.0005369,120]
[341098143,1730363481120,-291.969093,0.0005369,120]
[341098144,1730363481130,-151.0,0.0005369,120]
[341098145,1730363481139,-151.0,0.0005369,120]
[341098146,1730363481151,-1000.0,0.00053698,120]
[341098147,1730363481161,-2903.77289181,0.00053699,10]
[341098148,1730363481170,-156.66,0.000537,54]
[341098149,1730363481179,-156.66,0.000537,54]
[341098150,1730363481191,-156.66,0.000537,54]
[341098151,1730363481200,-156.66,0.000537,54]
[341098152,1730363481210,-156.66,0.000537,54]
[341098153,1730363481219,-156.66,0.000537,54]
[341098154,1730363481231,-610.60711297,0.00053704,10]
[341098155,1730363481243,-147688.72858639,0.00053707,10]
[341098156,1730363481253,-17975.50834725,0.00053707,10]
[341098157,1730363481262,-17975.50834725,0.00053718,10]
[341098158,1730363481272,-3762.75855787,0.0005372,10]
[341098159,1730363481281,-17975.50834725,0.00053721,10]
[341098160,1730363481290,-3762.75855787,0.00053726,10]
[341098161,1730363481300,-615.713996,0.00053727,120]
[341098162,1730363481309,-869.0201,0.00053729,2]
[341098163,1730363481319,-2000.0,0.00053729,2]
[341098164,1730363481329,-2000.0,0.0005373,2]
[341098165,1730363481338,-2008.8435,0.0005373,2]
[341098166,1730363481347,-2000.0,0.0005373,2]
[341098167,1730363481356,-32587.06552345,0.00053734,10]
[341098168,1730363481366,-200.0,0.00053736,10]
[341098169,1730363481374,-280.20110406,0.00053744,10]
[341098170,1730363481384,-147688.72858639,0.00053746,10]
[341098171,1730363481393,-200.0,0.00053752,10]
[341098172,1730363481403,-147688.72858639,0.00053756,10]
[341098173,1730363481412,-280.20110406,0.0005377,10]
[341098174,1730363481421,-3762.75855787,0.00053775,10]
[341098175,1730363481430,-280.20110406,0.00053777,10]
[341098176,1730363481440,-200.0,0.00053785,10]
[341098177,1730363481450,-1412.48744737,0.00053785,10]
[341098178,1730363481459,-32587.06552345,0.00053787,10]